[Event "FIDE World School-ch O-11 2025"]
[Site "Vrnjacka Banja"]
[Date "2025.03.21"]
[Round "2.2"]
[White "Zhang, Royce"]
[Black "Lishoy Gengis Paratazham, Dildarav"]
[Result "1/2-1/2"]
[Annotator "NA RC"]
[ECO "A46"]
[WhiteElo "1756"]
[BlackElo "2071"]
[PlyCount "68"]
[EventDate "2025.03.19"]
[EventType "swiss"]
[EventCountry "SRB"]
[SourceTitle "playchess.com"]
[Source "ChessBase"]
[SourceQuality "1"]
[TimeControl "5400+30"]

1. d4 {[%emt 0:00:02]} Nf6 {[%emt 0:00:09]} 2. Nf3 {[%emt 0:00:06]} e6 {[%emt 0:00:06]} 3. g3 {[%emt 0:00:09]} b5 {[%emt 0:03:16]} 4. Bg2 {[%emt 0:00:07]} Bb7 {[%emt 0:00:06]} 5. Bg5 {[%emt 0:00:06]} Be7 {[%emt 0:07:03]} 6. c3 {[%emt 0:03:23]} d6 {[%emt 0:04:42]} 7. Nbd2 {[%emt 0:05:20]} Nbd7 {[%emt 0:00:36]} 8. Qc2 {[%emt 0:02:45]} O-O {[%emt 0:08:26]} 9. e4 {[%emt 0:02:10]} e5 {[%emt 0:01:59]} 10. O-O {[%emt 0:15:19]} h6 {[%emt 0:02:08]} 11. Bxf6 {[%emt 0:02:04]} Bxf6 {[%emt 0:00:04]} 12. Qd3 {[%emt 0:02:40]} a6 {[%emt 0:10:58]} 13. Rfe1 {[%emt 0:07:16]} Re8 {[%emt 0:05:07]} 14. a4 {[%emt 0:01:27]} c6 {[%emt 0:11:17]} 15. Nb3 {[%emt 0:06:11]} Qc7 {[%emt 0:04:07]} 16. axb5 {[%emt 0:04:03]} axb5 {[%emt 0:01:16]} 17. Nfd2 {[%emt 0:07:15]} Red8 {[%emt 0:05:41]} 18. Nf1 {[%emt 0:09:49]} Qb6 {[%emt 0:06:03]} 19. d5 {[%emt 0:07:09]} c5 {[%emt 0:04:09]} 20. Qc2 {[%emt 0:09:12]} g6 {[%emt 0:02:31]} 21. Ne3 {[%emt 0:00:33]} h5 {[%emt 0:01:51]} 22. h4 {[%emt 0:02:14]} Rdb8 {[%emt 0:03:32]} 23. Bh3 {[%emt 0:01:49]} Nf8 {[%emt 0:00:36]} 24. Nd2 {[%emt 0:00:59]} Ba6 {[%emt 0:02:10]} 25. b3 {[%emt 0:00:54]} Nh7 {[%emt 0:01:07]} 26. Nf3 {[%emt 0:01:11]} Qd8 {[%emt 0:01:10]} 27. Kh2 {[%emt 0:01:30]} Kh8 {[%emt 0:00:57]} 28. Qe2 {[%emt 0:01:18]} Ra7 {[%emt 0:01:28]} 29. Ra2 {[%emt 0:00:38]} Rba8 {[%emt 0:00:21]} 30. Rea1 {[%emt 0:00:25]} Qe7 {[%emt 0:02:31]} 31. Bf1 {[%emt 0:01:47]} Qb7 {[%emt 0:02:33]} 32. Ra3 {[%emt 0:02:48]} Bd8 {[%emt 0:00:16]} 33. Qa2 {[%emt 0:00:09]} Bb6 {[%emt 0:00:23]} 34. Qb2 {[%emt 0:00:41]} Kg7 {[%emt 0:01:37]} 1/2-1/2

[Event "FIDE World School-ch O-11 2025"]
[Site "Vrnjacka Banja"]
[Date "2025.03.21"]
[Round "2.3"]
[White "Ivanovic, Leonid"]
[Black "Feseniuk, Pavlo"]
[Result "1-0"]
[Annotator "NA RC"]
[ECO "E71"]
[WhiteElo "2015"]
[BlackElo "1780"]
[PlyCount "101"]
[EventDate "2025.03.19"]
[EventType "swiss"]
[EventCountry "SRB"]
[SourceTitle "playchess.com"]
[Source "ChessBase"]
[SourceQuality "1"]
[TimeControl "5400+30"]

1. d4 {[%emt 0:00:30]} Nf6 {[%emt 0:00:30]} 2. c4 {[%emt 0:00:30]} g6 {[%emt 0:00:30]} 3. Nc3 {[%emt 0:00:30]} Bg7 {[%emt 0:00:00]} 4. e4 {[%emt 0:00:00]} d6 {[%emt 0:00:17]} 5. h3 {[%emt 0:00:18]} O-O {[%emt 0:00:21]} 6. Be3 {[%emt 1:31:42]} e5 7. d5 {[%emt 0:00:00]} a5 {[%emt 0:00:53]} 8. g4 {[%emt 0:00:00]} Na6 {[%emt 0:00:30]} 9. Nge2 {[%emt 0:00:00]} Nd7 {[%emt 0:00:34]} 10. h4 {[%emt 0:00:00]} Ndc5 {[%emt 0:03:41]} 11. Ng3 {[%emt 0:00:00]} c6 {[%emt 0:01:49]} 12. Be2 {[%emt 0:00:00]} cxd5 {[%emt 0:00:24]} 13. cxd5 {[%emt 0:00:00]} Bd7 {[%emt 0:00:36]} 14. Qd2 {[%emt 0:00:00]} f6 {[%emt 0:03:36]} 15. h5 {[%emt 0:00:00]} g5 {[%emt 0:02:36]} 16. h6 {[%emt 0:00:00]} Bh8 {[%emt 0:00:11]} 17. Nf5 {[%emt 0:00:00]} Bxf5 {[%emt 0:03:00]} 18. gxf5 {[%emt 0:00:00]} Rb8 {[%emt 0:01:03]} 19. Rg1 {[%emt 0:00:00]} Kf7 {[%emt 0:03:18]} 20. Bb5 {[%emt 0:00:00]} Rg8 {[%emt 0:05:54]} 21. Qe2 {[%emt 0:00:00]} Ke7 {[%emt 0:03:51]} 22. O-O-O {[%emt 0:00:00]} Rc8 {[%emt 0:02:28]} 23. Kb1 {[%emt 0:00:00]} Kf7 {[%emt 0:04:33]} 24. Rg2 {[%emt 0:00:00]} Ra8 {[%emt 0:02:09]} 25. Rdg1 {[%emt 0:00:00]} b6 {[%emt 0:03:23]} 26. Bxa6 {[%emt 0:00:00]} Nxa6 {[%emt 0:00:11]} 27. f4 {[%emt 0:00:00]} exf4 {[%emt 0:03:18]} 28. Bxf4 {[%emt 0:00:00]} Nc7 {[%emt 0:01:48]} 29. Be3 {[%emt 0:00:00]} Rb8 {[%emt 0:00:44]} 30. e5 {[%emt 0:00:00]} dxe5 {[%emt 0:00:43]} 31. Qc4 {[%emt 0:00:00]} b5 {[%emt 0:03:29]} 32. Qc6 {[%emt 0:00:00]} b4 {[%emt 0:03:58]} 33. Ne4 {[%emt 0:00:00]} a4 {[%emt 0:11:30]} 34. Nd6+ {[%emt 0:00:00]} Ke7 {[%emt 0:03:17]} 35. Bc5 {[%emt 0:00:00]} Qd7 {[%emt 0:00:43]} 36. Nb5+ {[%emt 0:00:00]} Kd8 {[%emt 0:00:19]} 37. Nxc7 {[%emt 0:00:00]} Qxc7 {[%emt 0:00:09]} 38. Bd6 {[%emt 0:00:00]} Qb7 {[%emt 0:00:21]} 39. Bxb8 {[%emt 0:00:00]} Qxb8 {[%emt 0:00:06]} 40. d6 {[%emt 0:00:00]} Qc8 {[%emt 0:01:03]} 41. Qxc8+ {[%emt 0:00:00]} Kxc8 {[%emt 0:00:06]} 42. Rc2+ {[%emt 0:00:00]} Kd7 {[%emt 0:00:07]} 43. Rd1 {[%emt 0:00:00]} Rc8 {[%emt 0:00:19]} 44. Rxc8 {[%emt 0:00:00]} Kxc8 {[%emt 0:00:04]} 45. d7+ {[%emt 0:00:00]} Kd8 {[%emt 0:00:04]} 46. b3 {[%emt 0:00:00]} a3 {[%emt 0:00:04]} 47. Kc2 {[%emt 0:00:00]} e4 {[%emt 0:00:16]} 48. Rd4 {[%emt 0:00:00]} e3 {[%emt 0:00:08]} 49. Kd3 {[%emt 0:00:00]} e2 {[%emt 0:00:08]} 50. Kxe2 {[%emt 0:00:00]} g4 {[%emt 0:00:05]} 51. Rxg4 {[%emt 0:00:00]} 1-0

[Event "FIDE World School-ch O-11 2025"]
[Site "Vrnjacka Banja"]
[Date "2025.03.21"]
[Round "2.4"]
[White "Popov, Aleksandr And"]
[Black "Adamovic, Nikola"]
[Result "0-1"]
[Annotator "NA RC"]
[ECO "B22"]
[WhiteElo "1753"]
[BlackElo "1996"]
[PlyCount "102"]
[EventDate "2025.03.19"]
[EventType "swiss"]
[EventCountry "SRB"]
[SourceTitle "playchess.com"]
[Source "ChessBase"]
[SourceQuality "1"]
[TimeControl "5400+30"]

1. e4 {[%emt 0:00:02]} c5 {[%emt 0:00:04]} 2. c3 {[%emt 0:00:05]} d5 {[%emt 0:00:05]} 3. exd5 {[%emt 0:00:06]} Qxd5 {[%emt 0:00:01]} 4. d4 {[%emt 0:00:07]} Nf6 {[%emt 0:00:05]} 5. Nf3 {[%emt 0:00:28]} e6 {[%emt 0:00:08]} 6. Be2 {[%emt 0:00:28]} Nc6 {[%emt 0:00:30]} 7. O-O {[%emt 0:00:32]} cxd4 {[%emt 0:00:15]} 8. cxd4 {[%emt 0:00:11]} Be7 {[%emt 0:00:19]} 9. Nc3 {[%emt 0:00:27]} Qd6 {[%emt 0:00:25]} 10. Nb5 {[%emt 0:04:42]} Qd8 {[%emt 0:01:32]} 11. Bf4 {[%emt 0:00:33]} Nd5 {[%emt 0:00:10]} 12. Bg3 {[%emt 0:01:51]} a6 {[%emt 0:02:34]} 13. Nc3 {[%emt 0:00:11]} O-O {[%emt 0:02:00]} 14. Rc1 {[%emt 0:03:56]} Bd7 {[%emt 0:05:51]} 15. Nxd5 {[%emt 0:00:30]} exd5 {[%emt 0:00:03]} 16. a3 {[%emt 0:07:23]} Re8 {[%emt 0:03:37]} 17. h3 {[%emt 0:03:40]} Bf6 {[%emt 0:02:38]} 18. Qd2 {[%emt 0:11:28]} Bf5 {[%emt 0:11:23]} 19. Bd3 {[%emt 0:03:14]} Be4 {[%emt 0:01:38]} 20. Bb1 {[%emt 0:30:08]} Bxf3 {[%emt 0:00:40]} 21. gxf3 {[%emt 0:00:06]} Nxd4 {[%emt 0:00:58]} 22. Qd3 {[%emt 0:04:08]} g6 {[%emt 0:03:09]} 23. Rfe1 {[%emt 0:02:19]} Qd7 {[%emt 0:02:33]} 24. Rxe8+ {[%emt 0:03:18]} Rxe8 {[%emt 0:00:01]} 25. Kg2 {[%emt 0:00:58]} Nc6 {[%emt 0:01:04]} 26. b4 {[%emt 0:01:31]} d4 {[%emt 0:05:55]} 27. Rd1 {[%emt 0:01:16]} Qd5 {[%emt 0:02:02]} 28. Rd2 {[%emt 0:03:14]} Ne5 {[%emt 0:09:19]} 29. Ba2 {[%emt 0:02:58]} Qc6 {[%emt 0:03:33]} 30. Qb3 {[%emt 0:01:14]} Qd7 {[%emt 0:01:24]} 31. Rxd4 {[%emt 0:01:36]} Qxd4 {[%emt 0:00:34]} 32. f4 {[%emt 0:04:59]} Qe4+ {[%emt 0:00:56]} 33. f3 {[%emt 0:00:16]} Qe2+ {[%emt 0:00:11]} 34. Bf2 {[%emt 0:00:08]} Bh4 {[%emt 0:00:11]} 35. fxe5 {[%emt 0:01:31]} Qxf2+ {[%emt 0:00:10]} 36. Kh1 {[%emt 0:00:02]} Qe1+ {[%emt 0:00:25]} 37. Kg2 {[%emt 0:00:04]} Qd2+ {[%emt 0:00:12]} 38. Kh1 {[%emt 0:00:22]} Qc1+ {[%emt 0:01:16]} 39. Kg2 {[%emt 0:00:09]} Qg5+ {[%emt 0:00:05]} 40. Kh1 {[%emt 0:00:20]} Qf5 {[%emt 0:00:13]} 41. Kg2 {[%emt 0:00:41]} Rxe5 {[%emt 0:00:15]} 42. Qxf7+ {[%emt 0:01:41]} Qxf7 {[%emt 0:00:02]} 43. Bxf7+ {[%emt 0:00:09]} Kxf7 {[%emt 0:00:04]} 44. b5 {[%emt 0:00:09]} Rxb5 {[%emt 0:00:06]} 45. a4 {[%emt 0:00:06]} Rb2+ {[%emt 0:00:03]} 46. Kg1 {[%emt 0:00:11]} Kf6 {[%emt 0:00:05]} 47. f4 {[%emt 0:00:06]} Kf5 {[%emt 0:00:04]} 48. a5 {[%emt 0:00:05]} Kxf4 {[%emt 0:00:07]} 49. Kf1 {[%emt 0:00:11]} Kf3 {[%emt 0:00:23]} 50. Kg1 {[%emt 0:00:05]} Rb1+ {[%emt 0:00:14]} 51. Kh2 {[%emt 0:00:05]} Bg3# {[%emt 0:00:05]} 0-1

[Event "FIDE World School-ch O-11 2025"]
[Site "Vrnjacka Banja"]
[Date "2025.03.21"]
[Round "2.5"]
[White "Bai, Moxuan"]
[Black "Tulegen, Ramazan"]
[Result "1-0"]
[Annotator "NA RC"]
[ECO "B89"]
[WhiteElo "1726"]
[BlackElo "1973"]
[PlyCount "135"]
[EventDate "2025.03.19"]
[EventType "swiss"]
[EventCountry "SRB"]
[SourceTitle "playchess.com"]
[Source "ChessBase"]
[SourceQuality "1"]
[TimeControl "5400+30"]

1. e4 {[%emt 0:01:20]} c5 {[%emt 0:00:14]} 2. Nf3 {[%emt 0:00:11]} Nc6 {[%emt 0:01:49]} 3. d4 {[%emt 0:01:18]} cxd4 {[%emt 0:00:10]} 4. Nxd4 {[%emt 0:00:03]} Nf6 {[%emt 0:00:59]} 5. Nc3 {[%emt 0:00:17]} d6 {[%emt 0:00:12]} 6. Bc4 {[%emt 0:06:28]} e6 {[%emt 0:00:26]} 7. Be3 {[%emt 0:01:33]} a6 {[%emt 0:00:38]} 8. a4 {[%emt 0:02:22]} Be7 {[%emt 0:01:16]} 9. h3 {[%emt 0:05:41]} Bd7 {[%emt 0:02:24]} 10. O-O {[%emt 0:01:50]} O-O {[%emt 0:01:50]} 11. Qd2 {[%emt 0:05:11]} Qc7 {[%emt 0:06:49]} 12. f4 {[%emt 0:13:14]} Rad8 {[%emt 0:24:04]} 13. Nb3 {[%emt 0:06:15]} Nb4 {[%emt 0:17:36]} 14. Be2 {[%emt 0:03:30]} a5 {[%emt 0:03:56]} 15. Bf3 {[%emt 0:02:11]} Bc6 {[%emt 0:03:11]} 16. Qf2 {[%emt 0:01:23]} Nd7 {[%emt 0:04:20]} 17. Rad1 {[%emt 0:05:38]} b6 {[%emt 0:03:41]} 18. Nd4 {[%emt 0:02:13]} Ba8 {[%emt 0:03:35]} 19. Ncb5 {[%emt 0:02:21]} Qb8 {[%emt 0:03:00]} 20. c3 {[%emt 0:00:29]} Nc6 {[%emt 0:00:42]} 21. Nxc6 {[%emt 0:01:00]} Bxc6 {[%emt 0:00:09]} 22. Nd4 {[%emt 0:00:02]} Ba8 {[%emt 0:01:28]} 23. Qc2 {[%emt 0:06:06]} Rc8 {[%emt 0:04:03]} 24. Rfe1 {[%emt 0:06:20]} Rfd8 {[%emt 0:03:20]} 25. Bf2 {[%emt 0:01:00]} Bf6 {[%emt 0:01:41]} 26. Nb5 {[%emt 0:02:19]} Nc5 {[%emt 0:01:19]} 27. Rd2 {[%emt 0:02:02]} e5 {[%emt 0:02:00]} 28. f5 {[%emt 0:04:17]} Bg5 {[%emt 0:00:40]} 29. Rdd1 {[%emt 0:01:22]} Bc6 {[%emt 0:01:53]} 30. h4 {[%emt 0:00:40]} Bf6 {[%emt 0:00:58]} 31. Rd2 {[%emt 0:01:58]} Bxb5 {[%emt 0:01:20]} 32. axb5 {[%emt 0:00:09]} Qb7 {[%emt 0:00:54]} 33. Rd5 {[%emt 0:00:28]} Qe7 {[%emt 0:01:26]} 34. g3 {[%emt 0:00:12]} h6 {[%emt 0:01:33]} 35. Red1 {[%emt 0:00:35]} Qc7 {[%emt 0:00:33]} 36. Qe2 {[%emt 0:00:34]} Be7 {[%emt 0:00:34]} 37. Kg2 {[%emt 0:03:22]} Bf8 {[%emt 0:01:41]} 38. Be3 {[%emt 0:00:49]} Be7 {[%emt 0:01:01]} 39. Qf2 {[%emt 0:00:24]} a4 {[%emt 0:00:47]} 40. g4 {[%emt 0:01:09]} f6 {[%emt 0:01:34]} 41. g5 {[%emt 0:01:21]} fxg5 {[%emt 0:00:15]} 42. hxg5 {[%emt 0:00:05]} Bxg5 {[%emt 0:00:10]} 43. Bxg5 {[%emt 0:00:17]} hxg5 {[%emt 0:00:06]} 44. Qd2 {[%emt 0:01:48]} Kf7 {[%emt 0:01:34]} 45. Qxg5 {[%emt 0:01:02]} Qe7 {[%emt 0:00:19]} 46. Qg6+ {[%emt 0:01:28]} Kf8 {[%emt 0:01:20]} 47. Rxd6 {[%emt 0:01:01]} Rxd6 {[%emt 0:00:00]} 48. Qxd6 {[%emt 0:00:47]} a3 {[%emt 0:00:00]} 49. bxa3 {[%emt 0:00:48]} Nb7 {[%emt 0:00:54]} 50. Qg6 {[%emt 0:01:32]} Nd8 {[%emt 0:00:23]} 51. Rh1 {[%emt 0:01:42]} Qf7 {[%emt 0:00:19]} 52. Rh8+ {[%emt 0:01:09]} Ke7 {[%emt 0:00:07]} 53. Qxb6 {[%emt 0:02:16]} Qf6 {[%emt 0:00:21]} 54. Qxf6+ {[%emt 0:00:32]} gxf6 {[%emt 0:00:06]} 55. a4 {[%emt 0:02:02]} Rxc3 {[%emt 0:00:59]} 56. a5 {[%emt 0:00:05]} Rc2+ {[%emt 0:00:16]} 57. Kf1 {[%emt 0:00:09]} Rc1+ {[%emt 0:00:43]} 58. Kf2 {[%emt 0:00:05]} Ra1 {[%emt 0:00:29]} 59. a6 {[%emt 0:00:08]} Nf7 {[%emt 0:00:26]} 60. b6 {[%emt 0:00:55]} Nxh8 {[%emt 0:00:22]} 61. b7 {[%emt 0:00:08]} Rxa6 {[%emt 0:00:10]} 62. b8=Q {[%emt 0:03:54]} Ra2+ {[%emt 0:00:07]} 63. Kg3 {[%emt 0:00:00]} Nf7 {[%emt 0:00:11]} 64. Qc7+ {[%emt 0:00:00]} Kf8 {[%emt 0:00:17]} 65. Bh5 {[%emt 0:00:00]} Ng5 {[%emt 0:00:14]} 66. Qd6+ {[%emt 0:00:00]} Kg7 {[%emt 0:00:05]} 67. Qe7+ {[%emt 0:00:00]} Kg8 {[%emt 0:00:06]} 68. Qe8+ {[%emt 0:00:00]} 1-0

[Event "FIDE World School-ch O-11 2025"]
[Site "Vrnjacka Banja"]
[Date "2025.03.21"]
[Round "2.6"]
[White "Yildiz, Ali Aras"]
[Black "Colovic, Vuk"]
[Result "1-0"]
[Annotator "NA RC"]
[ECO "C00"]
[WhiteElo "1932"]
[BlackElo "1738"]
[PlyCount "85"]
[EventDate "2025.03.19"]
[EventType "swiss"]
[EventCountry "SRB"]
[SourceTitle "playchess.com"]
[Source "ChessBase"]
[SourceQuality "1"]
[TimeControl "5400+30"]

1. e4 {[%emt 0:00:31]} c5 {[%emt 0:00:09]} 2. Nf3 {[%emt 0:00:05]} e6 {[%emt 0:00:06]} 3. g3 {[%emt 0:00:32]} d6 {[%emt 0:02:16]} 4. Bg2 {[%emt 0:00:50]} Nc6 {[%emt 0:00:41]} 5. O-O {[%emt 0:01:36]} Nf6 {[%emt 0:00:27]} 6. Qe2 {[%emt 0:03:01]} Qc7 {[%emt 0:05:03]} 7. c3 {[%emt 0:04:17]} Be7 {[%emt 0:06:52]} 8. d4 {[%emt 0:04:39]} cxd4 {[%emt 0:00:56]} 9. cxd4 {[%emt 0:00:57]} O-O {[%emt 0:01:49]} 10. Nc3 {[%emt 0:02:54]} d5 {[%emt 0:06:40]} 11. e5 {[%emt 0:05:19]} Nd7 {[%emt 0:00:49]} 12. Be3 {[%emt 0:06:43]} a6 {[%emt 0:07:34]} 13. Nd2 {[%emt 0:08:38]} f6 {[%emt 0:10:16]} 14. exf6 {[%emt 0:06:26]} Nxf6 {[%emt 0:00:51]} 15. Nb3 {[%emt 0:03:25]} b5 {[%emt 0:05:40]} 16. Rac1 {[%emt 0:09:26]} Bd7 {[%emt 0:05:40]} 17. Bf4 {[%emt 0:09:04]} Bd6 {[%emt 0:07:45]} 18. Bxd6 {[%emt 0:04:23]} Qxd6 {[%emt 0:00:28]} 19. Qd2 {[%emt 0:02:30]} b4 {[%emt 0:09:00]} 20. Ne2 {[%emt 0:03:40]} Rfc8 {[%emt 0:04:43]} 21. Nc5 {[%emt 0:02:28]} a5 {[%emt 0:02:40]} 22. b3 {[%emt 0:02:22]} Rab8 {[%emt 0:06:49]} 23. Nf4 {[%emt 0:02:16]} Kf7 {[%emt 0:04:12]} 24. Rfe1 {[%emt 0:16:28]} Re8 {[%emt 0:00:45]} 25. Re2 {[%emt 0:00:00]} g5 {[%emt 0:01:04]} 26. Nfd3 {[%emt 0:00:00]} e5 {[%emt 0:08:20]} 27. dxe5 {[%emt 0:00:00]} Nxe5 {[%emt 0:00:39]} 28. Nxe5+ {[%emt 0:00:00]} Rxe5 {[%emt 0:00:17]} 29. Rxe5 {[%emt 0:00:00]} Qxe5 {[%emt 0:00:11]} 30. Nxd7 {[%emt 0:00:00]} Nxd7 {[%emt 0:00:04]} 31. Bxd5+ {[%emt 0:00:00]} Kg7 {[%emt 0:00:55]} 32. Re1 {[%emt 0:00:00]} Qd6 {[%emt 0:02:08]} 33. Qxg5+ {[%emt 0:00:00]} Qg6 {[%emt 0:00:23]} 34. Re7+ {[%emt 0:00:00]} Kh8 {[%emt 0:00:43]} 35. Qxg6 {[%emt 0:00:00]} hxg6 {[%emt 0:00:02]} 36. Rxd7 {[%emt 0:00:00]} Rc8 {[%emt 0:00:19]} 37. Bc4 {[%emt 0:00:00]} Ra8 {[%emt 0:00:10]} 38. Rd6 {[%emt 0:00:00]} Kg7 {[%emt 0:00:11]} 39. Ra6 {[%emt 0:00:00]} Rxa6 {[%emt 0:00:08]} 40. Bxa6 {[%emt 0:00:00]} Kf6 {[%emt 0:00:05]} 41. f4 {[%emt 0:00:00]} Ke6 {[%emt 0:00:26]} 42. Bd3 {[%emt 0:00:00]} Kd5 {[%emt 0:00:15]} 43. Bxg6 {[%emt 0:00:00]} 1-0

[Event "FIDE World School-ch O-11 2025"]
[Site "Vrnjacka Banja"]
[Date "2025.03.22"]
[Round "4.1"]
[White "Uzdemir, Ali Poyraz"]
[Black "Adamovic, Nikola"]
[Result "1-0"]
[Annotator "TA"]
[ECO "B32"]
[WhiteElo "2184"]
[BlackElo "1996"]
[PlyCount "93"]
[EventDate "2025.03.19"]
[EventType "swiss"]
[EventCountry "SRB"]
[SourceTitle "playchess.com"]
[Source "ChessBase"]
[SourceQuality "1"]
[TimeControl "5400+30"]

{[%evp 11,93,0,-2,0,0,0,15,11,51,58,60,56,37,50,44,42,43,16,29,41,46,21,38,18,42,43,47,27,17,25,37,5,8,-2,24,0,38,11,27,10,58,56,106,51,61,45,140,122,125,41,66,36,43,0,34,22,35,26,148,141,123,88,459,432,459,472,819,798,935,664,29990,29991,29991,29992,29992,29993,29993,29994,29994,29995,29995,29996,29996,29997]} 1. e4 {[%emt 0:00:17]} c5 {[%emt 0:00:22]} 2. Nf3 {[%emt 0:00:06][%cal Bg1f3,Bf3d4,Bd4b5,Bb5c3][%mdl 32]} Nc6 {[%emt 0:00:04]} 3. d4 {[%emt 0:00:03]} cxd4 {[%emt 0:00:03]} 4. Nxd4 {[%emt 0:00:04]} e5 {[%emt 0:00:08]} 5. Nb5 {[%emt 0:00:33]} a6 {[%emt 0:00:06]} 6. N5c3 {[%emt 0:03:10]} Bc5 {[%emt 0:02:55]} 7. Bc4 {[%emt 0:01:06][%cal Oc4f7] B32: Sicilian: Löwenthal and Kalashnikov Variations.} Nf6 {[%emt 0:02:23]} 8. O-O {[%emt 0:05:10]} d6 {[%emt 0:02:34]} 9. Bg5 {[%emt 0:08:06] The position is equal.} Be6 {[%emt 0:01:06]} 10. Nd5 {[%emt 0:01:03]} Bxd5 {[%emt 0:00:27]} 11. Bxd5 {[%emt 0:00:41] A sharp opening} h6 $146 {[%emt 0:00:44]} (11... O-O 12. Nc3 Bd4 13. Ne2 Rc8 14. c3 Bc5 15. Ng3 h6 16. Bc1 b5 17. Bb3 Ne7 {½-½ Azadmanesh,M-Kamphuis,B NED-ch U18 Hengelo 1995 (5)}) 12. Bxf6 {[%emt 0:00:53]} Qxf6 {[%emt 0:00:10]} 13. Nc3 {[%emt 0:00:18]} O-O {[%emt 0:01:53]} 14. Qg4 {[%emt 0:05:51]} Qg5 {[%emt 0:08:43]} 15. Qxg5 {[%emt 0:02:20]} hxg5 {[%emt 0:00:01]} 16. Bb3 {[%emt 0:02:27]} Ne7 {[%emt 0:04:58]} 17. Rad1 {[%emt 0:00:42]} Bd4 {[%emt 0:08:38]} 18. Rd3 {[%emt 0:04:20]} Kh7 {[%emt 0:06:06]} 19. Ne2 {[%emt 0:05:01]} Bc5 {[%emt 0:08:35]} 20. c3 {[%emt 0:02:02]} b5 {[%emt 0:09:57]} 21. Rfd1 {[%emt 0:02:45]} a5 {[%emt 0:02:38]} 22. a3 {[%emt 0:03:47]} a4 {[%emt 0:05:59]} 23. Ba2 {[%emt 0:00:38]} Rac8 {[%emt 0:00:46]} 24. Rg3 {[%emt 0:01:58]} Kh6 {[%emt 0:01:13]} 25. Nc1 {[%emt 0:01:57]} Nc6 {[%emt 0:03:15]} (25... g6 $11) 26. Nd3 $14 {[%emt 0:01:18]} Bb6 {[%emt 0:01:21]} (26... Na5 $14) 27. Nb4 {[%emt 0:00:47]} ({White should try} 27. Ne1 $16 Bc5 28. Nf3) 27... Bc5 {[%emt 0:06:05]} 28. Na6 {[%emt 0:05:59]} Rcd8 {[%emt 0:01:35]} ({Better is} 28... Na5 $14) 29. Rgd3 $16 {[%emt 0:02:39]} g6 {[%emt 0:01:19]} 30. Nc7 {[%emt 0:02:02]} (30. g3 $16) 30... Kg7 {[%emt 0:00:51]} 31. Bd5 {[%emt 0:02:05] White is more active.} (31. Nxb5 Rb8 32. c4 (32. Nxd6 Rxb2 33. R1d2 Rxd2 $15) (32. Bc4 $2 Na5 $19) 32... Nd4 $15) 31... Na5 {[%emt 0:00:44][%cal Bc6a5,Ba5c4,Bc4a3][%mdl 32]} 32. Ba2 {[%emt 0:02:17][%cal Od3d5]} Nc4 {[%emt 0:01:59]} 33. Rb1 {[%emt 0:03:14]} Rb8 {[%emt 0:01:59]} 34. Na6 {[%emt 0:02:58]} Rfd8 {[%emt 0:02:09]} 35. Nxb8 {[%emt 0:01:00]} Rxb8 {[%emt 0:00:01]} 36. b4 {[%emt 0:05:52]} Nxa3 {[%emt 0:02:40][%mdl 8192] This costs Black the game.} (36... axb3 $16 {is more resistant.} 37. Bxb3 (37. Rxb3 g4 $16) 37... Nxa3) 37. Rbd1 $18 {[%emt 0:03:32]} (37. bxc5 Nxb1 38. Bxb1 dxc5 $11) 37... Ba7 {[%emt 0:00:59]} 38. Rxd6 {[%emt 0:00:14] [#] Strongly threatening Rd7.} Rc8 {[%emt 0:00:00]} (38... Bb6 $142 39. Rd7 g4 40. Rxf7+ (40. Bxf7 Rf8 $18) 40... Kh6) 39. Rd7 {[%emt 0:00:18][%csl LRa7,LRf7]} Bb6 {[%emt 0:00:11]} 40. Rb7 {[%emt 0:03:16]} Rc6 {[%emt 0:01:25]} 41. Rxf7+ {[%emt 0:00:45] White mates.} Kh6 {[%emt 0:00:14]} 42. g4 {[%emt 0:00:34]} Bxf2+ {[%emt 0:01:11]} 43. Kxf2 {[%emt 0:00:35]} Rxc3 {[%emt 0:00:39]} 44. Rdd7 {[%emt 0:00:19][%csl Gd7][%cal Rf7h7]} Rc2+ {[%emt 0:00:21]} 45. Ke1 {[%emt 0:00:20][%csl Gd7][%cal Rf7h7]} Rc1+ {[%emt 0:00:21]} 46. Kd2 {[%emt 0:00:10][%csl Gd7][%cal Rf7h7]} Rc2+ {[%emt 0:00:02]} 47. Kd1 {[%emt 0:00:03] Weighted Error Value: White=0.18 (very precise) /Black=0.58  Loses game:     	---       	Black=1      Mistake:       	White=2     	Black=5      Inaccurate:     	White=5     	Black=4      OK:         	White=14    	Black=8      Best:        	White=2     	Black=1} 1-0

[Event "FIDE World School-ch O-11 2025"]
[Site "Vrnjacka Banja"]
[Date "2025.03.22"]
[Round "4.2"]
[White "Ivanovic, Leonid"]
[Black "Yildiz, Ali Aras"]
[Result "1-0"]
[Annotator "NA RC"]
[ECO "D37"]
[WhiteElo "2015"]
[BlackElo "1932"]
[PlyCount "77"]
[EventDate "2025.03.19"]
[EventType "swiss"]
[EventCountry "SRB"]
[SourceTitle "playchess.com"]
[Source "ChessBase"]
[SourceQuality "1"]
[TimeControl "5400+30"]

1. d4 {[%emt 0:00:06]} d5 {[%emt 0:00:03]} 2. c4 {[%emt 0:00:06]} e6 {[%emt 0:00:04]} 3. Nc3 {[%emt 0:00:07]} Nf6 {[%emt 0:00:22]} 4. Nf3 {[%emt 0:00:31]} Be7 {[%emt 0:00:43]} 5. Bf4 {[%emt 0:00:23]} O-O {[%emt 0:02:51]} 6. e3 {[%emt 0:00:53]} b6 {[%emt 0:03:23]} 7. cxd5 {[%emt 0:02:41]} Nxd5 {[%emt 0:01:45]} 8. Nxd5 {[%emt 1:29:43]} exd5 {[%emt 0:02:29]} 9. a3 {[%emt 0:00:00]} c5 {[%emt 0:03:23]} 10. Bd3 {[%emt 0:00:00]} Bb7 {[%emt 0:06:50]} 11. h4 {[%emt 0:00:00]} Qd7 {[%emt 0:17:10]} 12. Ne5 {[%emt 0:00:00]} Qe6 {[%emt 0:05:34]} 13. Qc2 {[%emt 0:00:00]} g6 {[%emt 0:05:39]} 14. h5 {[%emt 0:00:00]} Nc6 {[%emt 0:08:39]} 15. hxg6 {[%emt 0:00:00]} fxg6 {[%emt 0:04:40]} 16. Rh6 {[%emt 0:00:00]} Nxe5 {[%emt 0:03:01]} 17. dxe5 {[%emt 0:00:00]} Kg7 {[%emt 0:02:24]} 18. Rh3 {[%emt 0:00:00]} Rf7 {[%emt 0:02:07]} 19. O-O-O {[%emt 0:00:00]} c4 {[%emt 0:02:19]} 20. Rdh1 {[%emt 0:00:00]} Rg8 {[%emt 0:09:18]} 21. Bxg6 {[%emt 0:00:00]} Rxf4 {[%emt 0:01:57]} 22. Rxh7+ {[%emt 0:00:00]} Kf8 {[%emt 0:00:05]} 23. exf4 {[%emt 0:00:00]} Qxg6 {[%emt 0:00:40]} 24. Qxg6 {[%emt 0:00:00]} Rxg6 {[%emt 0:00:01]} 25. f5 {[%emt 0:08:30]} Bg5+ {[%emt 0:01:03]} 26. Kd1 {[%emt 0:00:00]} Rg7 {[%emt 0:00:26]} 27. f6 {[%emt 0:00:00]} Rxh7 {[%emt 0:00:17]} 28. Rxh7 {[%emt 0:00:00]} Bc6 {[%emt 0:00:46]} 29. e6 {[%emt 0:00:00]} Bxf6 {[%emt 0:00:06]} 30. Rf7+ {[%emt 0:00:00]} Ke8 {[%emt 0:00:11]} 31. Rxf6 {[%emt 0:00:00]} d4 {[%emt 0:00:13]} 32. Rf4 {[%emt 0:00:00]} Bxg2 {[%emt 0:00:31]} 33. Rxd4 {[%emt 0:00:00]} Ke7 {[%emt 0:00:07]} 34. Rxc4 {[%emt 0:00:00]} Kxe6 {[%emt 0:00:06]} 35. Ke2 {[%emt 0:00:00]} Kd5 {[%emt 0:00:03]} 36. Rc7 {[%emt 0:00:00]} a6 {[%emt 0:00:07]} 37. Ke3 {[%emt 0:00:00]} Kd6 {[%emt 0:00:05]} 38. Rg7 {[%emt 0:00:00]} Bd5 {[%emt 0:00:05]} 39. Kd4 {[%emt 0:00:00]} 1-0